lending/lending_fUSD_20250411
["ID","MTS","AMOUNT","RATE_DAILY","PERIOD"]
[357702963,1744354601005,-153.0,0.00052329,120]
[357702964,1744354601046,-153.0,0.00052329,120]
[357702965,1744354601085,-153.0,0.00052329,120]
[357702966,1744354601125,-153.0,0.00052329,120]
[357702967,1744354601164,-153.0,0.00052329,120]
[357702968,1744354601205,-153.0,0.00052329,120]
[357702969,1744354601246,-153.0,0.00052329,120]
[357702970,1744354601286,-153.0,0.00052329,120]
[357702971,1744354601325,-153.0,0.00052329,120]
[357702972,1744354601365,-153.0,0.00052329,120]
[357702973,1744354601405,-153.0,0.00052329,120]
[357702974,1744354601446,-153.0,0.00052329,120]
[357702975,1744354601487,-153.0,0.00052329,120]
[357702976,1744354601529,-153.0,0.00052329,120]
[357702977,1744354601573,-153.0,0.00052329,120]
[357702978,1744354601616,-153.0,0.00052329,120]
[357702979,1744354601659,-153.0,0.00052329,120]
[357702980,1744354601889,-153.0,0.00052329,120]
[357702981,1744354601933,-153.0,0.00052329,120]
[357702982,1744354601976,-153.0,0.00052329,120]
[357702983,1744354602020,-153.0,0.00052329,120]
[357702984,1744354602062,-153.0,0.00052329,120]
[357702985,1744354602104,-153.0,0.00052329,120]
[357702986,1744354602146,-153.0,0.00052329,120]
[357702987,1744354602188,-153.0,0.00052329,120]
[357702988,1744354602230,-153.0,0.00052329,120]
[357702989,1744354602272,-153.0,0.00052329,120]
[357702990,1744354602315,-153.0,0.00052329,120]
[357702991,1744354602356,-153.0,0.00052329,120]
[357702992,1744354602398,-153.0,0.00052329,120]
[357702993,1744354602439,-153.0,0.00052329,120]
[357702994,1744354602481,-153.0,0.00052329,120]
[357702995,1744354602523,-153.0,0.00052329,120]
[357702996,1744354602568,-153.0,0.00052329,120]
[357702997,1744354602611,-153.0,0.00052329,120]
[357702998,1744354602654,-153.0,0.00052329,120]
[357702999,1744354602696,-153.0,0.00052329,120]
[357703000,1744354602736,-153.0,0.00052329,120]
[357703001,1744354602778,-153.0,0.00052329,120]
[357703002,1744354602820,-153.0,0.00052329,120]
[357703003,1744354602861,-153.0,0.00052329,120]
[357703004,1744354602903,-153.0,0.00052329,120]
[357703005,1744354602944,-153.0,0.00052329,120]
[357703006,1744354602987,-153.0,0.00052329,120]
[357703007,1744354603030,-153.0,0.00052329,120]
[357703008,1744354603072,-153.0,0.00052329,120]
[357703009,1744354603113,-153.0,0.00052329,120]
[357703010,1744354603155,-153.0,0.00052329,120]
[357703011,1744354603197,-153.0,0.00052329,120]
[357703012,1744354603237,-153.0,0.00052329,120]
[357703013,1744354603280,-153.0,0.00052329,120]
[357703014,1744354603321,-153.0,0.00052329,120]
[357703015,1744354603363,-153.0,0.00052329,120]
[357703016,1744354603405,-153.0,0.00052329,120]
[357703017,1744354603476,-153.0,0.00052329,120]
[357703018,1744354603543,-153.0,0.00052329,120]
[357703019,1744354603618,-153.0,0.00052329,120]
[357703020,1744354603687,-153.0,0.00052329,120]
[357703021,1744354603752,-153.0,0.00052329,120]
[357703022,1744354603812,-153.0,0.00052329,120]
[357703023,1744354603868,-153.0,0.00052329,120]
[357703024,1744354603931,-153.0,0.00052329,120]
[357703025,1744354603992,-153.0,0.00052329,120]
[357703026,1744354604053,-153.0,0.00052329,120]
[357703027,1744354604113,-153.0,0.00052329,120]
[357703028,1744354604172,-153.0,0.00052329,120]
[357703029,1744354604234,-153.0,0.00052329,120]
[357703030,1744354604292,-153.0,0.00052329,120]
[357703031,1744354604353,-153.0,0.00052329,120]
[357703032,1744354604413,-153.0,0.00052329,120]
[357703033,1744354604477,-153.0,0.00052329,120]
[357703034,1744354604538,-153.0,0.00052329,120]
[357703035,1744354604599,-153.0,0.00052329,120]
[357703036,1744354604661,-153.0,0.00052329,120]
[357703037,1744354604723,-153.0,0.00052329,120]
[357703038,1744354604788,-153.0,0.00052329,120]
[357703039,1744354604847,-153.0,0.00052329,120]
[357703040,1744354604909,-153.0,0.00052329,120]
[357703041,1744354604971,-153.0,0.00052329,120]
[357703042,1744354605035,-153.0,0.00052329,120]
[357703043,1744354605078,-153.0,0.00052329,120]
[357703044,1744354605122,-153.0,0.00052329,120]
[357703045,1744354605168,-153.0,0.00052329,120]
[357703046,1744354605212,-153.0,0.00052329,120]
[357703047,1744354605257,-153.0,0.00052329,120]
[357703048,1744354605300,-153.0,0.00052329,120]
[357703049,1744354605342,-153.0,0.00052329,120]
[357703050,1744354605384,-153.0,0.00052329,120]
[357703051,1744354605426,-153.0,0.00052329,120]
[357703052,1744354605468,-153.0,0.00052329,120]
[357703053,1744354605913,-153.0,0.00052329,120]
[357703054,1744354605980,-153.0,0.00052329,120]
[357703055,1744354606023,-153.0,0.00052329,120]
[357703056,1744354606066,-153.0,0.00052329,120]
[357703057,1744354606108,-153.0,0.00052329,120]
[357703058,1744354606149,-153.0,0.00052329,120]
[357703059,1744354606191,-153.0,0.00052329,120]
[357703060,1744354606234,-153.0,0.00052329,120]
[357703061,1744354606276,-153.0,0.00052329,120]
[357703062,1744354606319,-153.0,0.00052329,120]
[357703063,1744354606360,-153.0,0.00052329,120]
[357703064,1744354606403,-153.0,0.00052329,120]
[357703065,1744354606445,-153.0,0.00052329,120]
[357703066,1744354606488,-153.0,0.00052329,120]
[357703067,1744354606530,-153.0,0.00052329,120]
[357703068,1744354606574,-153.0,0.00052329,120]
[357703069,1744354606616,-153.0,0.00052329,120]
[357703070,1744354606657,-153.0,0.00052329,120]
[357703071,1744354606698,-153.0,0.00052329,120]
[357703072,1744354606740,-153.0,0.00052329,120]
[357703073,1744354606781,-153.0,0.00052329,120]
[357703074,1744354606824,-153.0,0.00052329,120]
[357703075,1744354606865,-150.0,0.00052409,120]
[357703076,1744354606906,-1200.0,0.000525,120]
[357703077,1744354606948,-1000000.0,0.000525,120]
[357703078,1744354606992,-516210.03724992,0.000525,120]
[357703079,1744354616497,-500.0,0.00049999,120]
[357703080,1744354616603,-500.0,0.00049999,120]
[357703081,1744354616650,-456.42382709,0.00049999,120]
[357703082,1744354616698,-500.0,0.00049999,120]
[357703083,1744354616743,-500.0,0.00049999,120]
[357703084,1744354616788,-500.0,0.00049999,120]
[357703085,1744354616832,-500.0,0.00049999,120]
[357703086,1744354616875,-500.0,0.00049999,120]
[357703087,1744354616919,-500.0,0.00049999,120]
[357703088,1744354616962,-250.0,0.00049999,120]
[357703089,1744354617007,-500.0,0.00049999,120]
[357703090,1744354617052,-500.0,0.00049999,120]
[357703091,1744354617095,-500.0,0.00049999,120]
[357703092,1744354617138,-500.0,0.00049999,120]
[357703093,1744354617180,-600.0,0.00049999,120]
[357703094,1744354617224,-261.14447828,0.00051,120]
[357703095,1744354617266,-253.49480541,0.00051,120]
[357703096,1744354617311,-483789.96275008,0.000525,120]
[357703097,1744354617353,-1000.0,0.00052559,60]
[357703098,1744354617395,-1700.0,0.00052566,60]
[357703099,1744354617437,-526.02654784,0.00052637,60]
[357703100,1744354617480,-1296.0,0.00052765,30]
[357703101,1744354617524,-1821.05962518,0.00052795,60]
[357703102,1744354617566,-292.70915594,0.000528,120]
[357703103,1744354617611,-78450.71320591,0.000528,120]
[357703104,1744354617653,-500.0,0.00052806,60]
[357703105,1744354617696,-500.0,0.00052824,60]
[357703106,1744354617739,-1097.59589138,0.00052835,120]
[357703107,1744354617781,-1447.07050257,0.00052986,120]
[357703108,1744354617821,-1447.07050257,0.00052986,120]
[357703109,1744354617861,-150.0,0.00052992,120]
[357703110,1744354617905,-50000.0,0.00053,53]
[357703111,1744354617948,-1000000.0,0.00053,120]
[357703112,1744354617991,-1000000.0,0.00053,120]
[357703113,1744354618034,-368160.72870775,0.00053,120]
[357703114,1744354622323,-727.20911786,0.000515,120]
[357703115,1744354622365,-150.0,0.00052806,60]
[357703116,1744354622408,-631839.27129225,0.00053,120]
[357703117,1744354622450,-200000.0,0.00053,120]
[357703118,1744354622490,-6133.0,0.00053,120]
[357703119,1744354622531,-800.0,0.00053,120]
[357703120,1744354622575,-500.0,0.00053041,60]
[357703121,1744354622617,-578.94367484,0.00053059,60]
[357703122,1744354622658,-1296.0,0.00053309,30]
[357703123,1744354622702,-503.9470545,0.00053327,60]
[357703124,1744354622748,-513.87034903,0.0005338,60]
[357703125,1744354622791,-1000.0,0.00053422,50]
[357703126,1744354622834,-1000.0,0.00053422,50]
[357703127,1744354622877,-1000.0,0.00053422,50]
[357703128,1744354622920,-1000.0,0.00053422,50]
[357703129,1744354622964,-1000.0,0.00053422,50]
[357703130,1744354623009,-1000.0,0.00053422,50]
[357703131,1744354623055,-1000.0,0.00053422,50]
[357703132,1744354623101,-1000.0,0.00053422,50]
[357703133,1744354623148,-1000.0,0.00053422,50]
[357703134,1744354623198,-1000.0,0.00053422,50]
[357703135,1744354623244,-1000.0,0.00053422,50]
[357703136,1744354623288,-1000.0,0.00053422,50]
[357703137,1744354623333,-1000.0,0.00053422,50]
[357703138,1744354623378,-1000.0,0.00053422,50]
[357703139,1744354623425,-1000.0,0.00053422,50]
[357703140,1744354623471,-1000.0,0.00053422,50]
[357703141,1744354623519,-1000.0,0.00053422,50]
[357703142,1744354623565,-1000.0,0.00053422,50]
[357703143,1744354623617,-1000.0,0.00053422,50]
[357703144,1744354623664,-1000.0,0.00053422,50]
[357703145,1744354623710,-828.47,0.00053422,50]
[357703146,1744354623755,-250.20377927,0.00053424,120]
[357703147,1744354623801,-500.0,0.00053424,30]
[357703148,1744354623845,-517.15468994,0.00053455,60]
[357703149,1744354623891,-150.0,0.00053456,120]
[357703150,1744354623935,-168.391,0.000535,120]
[357703151,1744354623983,-1000000.0,0.000535,120]
[357703152,1744354624030,-500.0,0.00053512,60]
[357703153,1744354624075,-163.88795652,0.00053535,120]
[357703154,1744354624121,-2500.0,0.000536,120]
[357703155,1744354624167,-150.0,0.00053651,120]
[357703156,1744354624213,-903.50005205,0.00053797,60]
[357703157,1744354624257,-2500.0,0.000538,120]
[357703158,1744354624304,-1296.0,0.00053853,30]
[357703159,1744354624349,-210.61757198,0.00053898,120]
[357703160,1744354624394,-165.80326392,0.00053898,120]
[357703161,1744354624439,-2392.74104122,0.00053899,60]
[357703162,1744354624484,-150.0,0.00053933,120]
[357703163,1744354624530,-500.0,0.00053972,32]
[357703164,1744354624587,-723.53525123,0.00053986,120]
[357703165,1744354624637,-723.53525123,0.00053986,120]
[357703166,1744354624685,-723.53525123,0.00053986,120]
[357703167,1744354624733,-723.53525123,0.00053986,120]
[357703168,1744354624780,-723.53525123,0.00053986,120]
[357703169,1744354624825,-723.53525123,0.00053986,120]
[357703170,1744354624870,-723.53525123,0.00053986,120]
[357703171,1744354624915,-723.53525123,0.00053986,120]
[357703172,1744354624959,-723.53525123,0.00053986,120]
[357703173,1744354625005,-723.53525123,0.00053986,120]
[357703174,1744354625050,-50000.0,0.00054,54]
[357703175,1744354625095,-2388.85490636,0.00054,120]
[357703176,1744354625140,-1000.0,0.00054,120]
[357703177,1744354625185,-2786.34139498,0.00054,120]
[357703178,1744354625232,-400.0,0.00054,120]
[357703179,1744354625278,-2500.0,0.00054,120]
[357703180,1744354625324,-1000.0,0.00054,120]
[357703181,1744354625371,-453.80191277,0.00054,120]
[357703182,1744354625418,-1000000.0,0.00054,120]
[357703183,1744354625468,-55346.63843021,0.00054,120]
[357703184,1744354631147,-5000.0,0.0005,35]
[357703185,1744354631191,-252.58329475,0.000515,120]
[357703186,1744354631238,-944653.36156979,0.00054,120]
[357703187,1744354631282,-1000000.0,0.00054,120]
[357703188,1744354631326,-200000.0,0.00054,120]
[357703189,1744354631370,-151097.54,0.00054,60]
[357703190,1744354631414,-800.0,0.00054,120]
[357703191,1744354631457,-4023.36353876,0.00054,120]
[357703192,1744354631499,-864.03016574,0.00054,120]
[357703193,1744354631541,-222.613389,0.00054,120]
[357703194,1744354631582,-4640.97035112,0.00054,30]
[357703195,1744354631622,-150.0,0.00054074,120]
[357703196,1744354631662,-2500.0,0.000542,120]
[357703197,1744354631703,-160.0,0.0005437,120]
[357703198,1744354631745,-151.77,0.00054384,120]
[357703199,1744354631787,-1296.0,0.00054397,30]
[357703200,1744354631828,-499.00787244,0.00054397,30]
[357703201,1744354631868,-2500.0,0.000544,120]
[357703202,1744354631908,-500.0,0.0005452,34]
[357703203,1744354631947,-2500.0,0.000546,120]
[357703204,1744354631986,-5000.0,0.000546,120]
[357703205,1744354632029,-1999.0,0.00054767,120]
[357703206,1744354632070,-1999.0,0.00054767,120]
[357703207,1744354632111,-1999.0,0.00054767,120]
[357703208,1744354632150,-1999.0,0.00054767,120]
[357703209,1744354632191,-1999.0,0.00054767,120]
[357703210,1744354632230,-1999.0,0.00054767,120]
[357703211,1744354632275,-1999.0,0.00054767,120]
[357703212,1744354632334,-1999.0,0.00054767,120]
[357703213,1744354632373,-1999.0,0.00054767,120]
[357703214,1744354632413,-1999.0,0.00054767,120]
[357703215,1744354632451,-1999.0,0.00054767,120]
[357703216,1744354632490,-1999.0,0.00054767,120]
[357703217,1744354632530,-1999.0,0.00054767,120]
[357703218,1744354632815,-1999.0,0.00054767,120]
[357703219,1744354632857,-1999.0,0.00054767,120]
[357703220,1744354632899,-1999.0,0.00054767,120]
[357703221,1744354632941,-1999.0,0.00054767,120]
[357703222,1744354632986,-1999.0,0.00054767,120]
[357703223,1744354633029,-1999.0,0.00054767,120]
[357703224,1744354633072,-1999.0,0.00054767,120]
[357703225,1744354633115,-1999.0,0.00054767,120]
[357703226,1744354633156,-1999.0,0.00054767,120]
[357703227,1744354633198,-1999.0,0.00054767,120]
[357703228,1744354633240,-948.57774108,0.00054767,120]
[357703229,1744354633282,-1924.53518247,0.0005477,120]
[357703230,1744354633324,-500.0,0.00054794,120]
[357703231,1744354633366,-533.90228344,0.00054794,120]
[357703232,1744354633407,-435.19013943,0.00054794,120]
[357703233,1744354633448,-2557.83,0.00054794,120]
[357703234,1744354633490,-959.64,0.00054794,120]
[357703235,1744354633531,-500.0,0.00054794,120]
[357703236,1744354633577,-177.86009108,0.00054794,120]
[357703237,1744354633618,-500.0,0.00054794,120]
[357703238,1744354633660,-500.0,0.00054794,120]
[357703239,1744354633700,-500.0,0.00054794,120]
[357703240,1744354633741,-500.0,0.00054794,120]
[357703241,1744354633783,-500.0,0.00054794,120]
[357703242,1744354633823,-500.0,0.00054794,120]
[357703243,1744354633864,-500.0,0.00054794,120]
[357703244,1744354633905,-500.0,0.00054794,120]
[357703245,1744354633945,-500.0,0.00054794,120]
[357703246,1744354633988,-500.0,0.00054794,120]
[357703247,1744354634029,-500.0,0.00054794,120]
[357703248,1744354634073,-500.0,0.00054794,120]
[357703249,1744354634115,-500.0,0.00054794,120]
[357703250,1744354634159,-500.0,0.00054794,120]
[357703251,1744354634200,-500.0,0.00054794,120]
[357703252,1744354634242,-345.8907882,0.00054794,120]
[357703253,1744354634282,-272.49427866,0.00054794,120]
[357703254,1744354634324,-1000.0,0.00054794,120]
[357703255,1744354634365,-1030.39971279,0.00054794,120]
[357703256,1744354634406,-500.0,0.00054794,120]
[357703257,1744354634448,-500.0,0.00054794,120]
[357703258,1744354634489,-500.0,0.00054794,120]
[357703259,1744354634531,-500.0,0.00054794,120]
[357703260,1744354634573,-317.6526838,0.00054794,120]
[357703261,1744354634615,-1000.0,0.00054794,120]
[357703262,1744354634656,-1000.0,0.00054794,120]
[357703263,1744354634699,-1000.0,0.00054794,120]
[357703264,1744354634740,-1000.0,0.00054794,120]
[357703265,1744354634781,-1000.0,0.00054794,120]
[357703266,1744354634823,-1000.0,0.00054794,120]
[357703267,1744354634865,-1000.0,0.00054794,120]
[357703268,1744354634906,-1000.0,0.00054794,120]
[357703269,1744354634947,-1000.0,0.00054794,120]
[357703270,1744354634987,-1000.0,0.00054794,120]
[357703271,1744354635029,-1000.0,0.00054794,120]
[357703272,1744354635072,-1000.0,0.00054794,120]
[357703273,1744354635112,-857.13,0.00054794,120]
[357703274,1744354635154,-216.51304877,0.00054795,120]
[357703275,1744354635195,-505.19711381,0.00054795,120]
[357703276,1744354635238,-2500.0,0.000548,120]
[357703277,1744354635280,-5000.0,0.000548,120]
[357703278,1744354635321,-2000.0,0.00054874,31]
[357703279,1744354635361,-7268.08039506,0.000549,120]
[357703280,1744354635402,-2000.0,0.000549,120]
[357703281,1744354635444,-1296.0,0.00054941,30]
[357703282,1744354635485,-1447.07050257,0.00054986,120]
[357703283,1744354635528,-1447.07050257,0.00054986,120]
[357703284,1744354635570,-1447.07050257,0.00054986,120]
[357703285,1744354635616,-1000.0,0.00054999,120]
[357703286,1744354635662,-50000.0,0.00055,55]
[357703287,1744354635708,-50000.0,0.00055,65]
[357703288,1744354635751,-500.0,0.00055,120]
[357703289,1744354635792,-2500.0,0.00055,120]
[357703290,1744354635835,-3000.0,0.00055,120]
[357703291,1744354635875,-461223.6548521,0.00055,30]
[357703292,1744354640908,-500.0,0.00044209,30]
[357703293,1744354640957,-260.0393474,0.000515,120]
[357703294,1744354641000,-150.0,0.00054397,30]
[357703295,1744354641045,-430.56069171,0.000549,120]
[357703296,1744354641086,-430.56069162,0.000549,120]
[357703297,1744354641127,-54653.88133363,0.00055,30]
[357703298,1744354641169,-1000000.0,0.00055,120]
[357703299,1744354641210,-5000.0,0.00055,120]
[357703300,1744354641252,-1000000.0,0.00055,120]
[357703301,1744354641293,-938574.95793564,0.00055,120]
[357703302,1744354645826,-500.0,0.00043877,30]
[357703303,1744354645871,-500.0,0.00045786,30]
[357703304,1744354645914,-500.0,0.00046374,30]
[357703305,1744354645955,-500.0,0.00046639,30]
[357703306,1744354646001,-500.0,0.000485,30]
[357703307,1744354646040,-500.0,0.00048778,30]
[357703308,1744354646081,-500.0,0.00049144,30]
[357703309,1744354646122,-500.0,0.00049965,30]
[357703310,1744354646165,-500.0,0.00050101,60]
[357703311,1744354646206,-500.0,0.00051055,60]
[357703312,1744354646247,-500.0,0.00051292,60]
[357703313,1744354646287,-500.0,0.0005235,60]
[357703314,1744354646328,-298.96965048,0.00053,120]
[357703315,1744354646368,-577.28601731,0.00053585,60]
[357703316,1744354646409,-532.06895634,0.00053619,60]
[357703317,1744354646450,-150.0,0.00054874,31]
[357703318,1744354646493,-61425.04206436,0.00055,120]
[357703319,1744354646536,-1000000.0,0.00055,120]
[357703320,1744354646582,-1000000.0,0.00055,120]
[357703321,1744354646629,-931016.63331151,0.00055,120]
[357703322,1744354650670,-363.43236544,0.00053,120]
[357703323,1744354650713,-430.56069162,0.000549,120]
[357703324,1744354650757,-68983.36668849,0.00055,120]
[357703325,1744354650797,-200000.0,0.00055,120]
[357703326,1744354650837,-58434.77560868,0.00055,120]
[357703327,1744354650878,-1000000.0,0.00055,120]
[357703328,1744354650918,-1000000.0,0.00055,120]
[357703329,1744354650960,-671787.86464577,0.00055,120]
[357703330,1744354653795,-430.56069162,0.000549,120]
[357703331,1744354653840,-328212.13535423,0.00055,120]
[357703332,1744354653884,-585.0,0.00055,120]
[357703333,1744354653925,-511.0,0.00055,120]
[357703334,1744354653967,-492.57439937,0.00055,30]
[357703335,1744354654009,-150.0,0.00055,55]
[357703336,1744354654052,-150.0,0.0005506,120]
[357703337,1744354654093,-2557.83,0.00055068,120]
[357703338,1744354654133,-500.0,0.00055068,36]
[357703339,1744354654176,-999.0,0.00055095,120]
[357703340,1744354654218,-999.0,0.00055095,120]
[357703341,1744354654262,-999.0,0.00055095,120]
[357703342,1744354654307,-999.0,0.00055095,120]
[357703343,1744354654351,-999.0,0.00055095,120]
[357703344,1744354654392,-999.0,0.00055095,120]
[357703345,1744354654435,-999.0,0.00055095,120]
[357703346,1744354654479,-999.0,0.00055095,120]
[357703347,1744354654521,-999.0,0.00055095,120]
[357703348,1744354654562,-999.0,0.00055095,120]
[357703349,1744354654607,-999.0,0.00055095,120]
[357703350,1744354654652,-999.0,0.00055095,120]
[357703351,1744354654696,-999.0,0.00055095,120]
[357703352,1744354654740,-999.0,0.00055095,120]
[357703353,1744354654783,-925.3601218,0.00055095,120]
[357703354,1744354654827,-150.0,0.00055152,120]
[357703355,1744354654869,-150.0,0.00055155,120]
[357703356,1744354654910,-2500.0,0.000552,120]
[357703357,1744354654950,-5000.0,0.000552,120]
[357703358,1744354654991,-1495.37,0.00055205,120]
[357703359,1744354655033,-150.0,0.00055223,120]
[357703360,1744354655073,-2400.00000099,0.00055234,45]
[357703361,1744354655115,-150.0,0.00055242,120]
[357703362,1744354655159,-2813.7,0.000553,54]
[357703363,1744354655204,-2813.7,0.000553,54]
[357703364,1744354655249,-2813.7,0.000553,54]
[357703365,1744354655296,-2813.7,0.000553,54]
[357703366,1744354655342,-2813.7,0.000553,54]
[357703367,1744354655389,-2813.7,0.000553,54]
[357703368,1744354655435,-2813.7,0.000553,54]
[357703369,1744354655483,-2813.7,0.000553,54]
[357703370,1744354655756,-2813.7,0.000553,54]
[357703371,1744354655804,-2813.7,0.000553,54]
[357703372,1744354655851,-2813.7,0.000553,54]
[357703373,1744354655899,-2813.7,0.000553,54]
[357703374,1744354655944,-2813.7,0.000553,54]
[357703375,1744354655994,-2813.7,0.000553,54]
[357703376,1744354656041,-2813.7,0.000553,54]
[357703377,1744354656088,-2813.7,0.000553,54]
[357703378,1744354656128,-2557.83,0.00055342,120]
[357703379,1744354656169,-959.64,0.00055342,120]
[357703380,1744354656210,-500.0,0.00055342,120]
[357703381,1744354656250,-500.0,0.00055342,120]
[357703382,1744354656291,-500.0,0.00055342,120]
[357703383,1744354656330,-5000.0,0.000554,120]
[357703384,1744354656370,-5661.8461565,0.00055433,30]
[357703385,1744354656411,-1296.0,0.00055485,30]
[357703386,1744354656453,-150.0,0.00055522,120]
[357703387,1744354656496,-2500.0,0.000556,120]
[357703388,1744354656536,-5000.0,0.000556,120]
[357703389,1744354656578,-2557.83,0.00055616,120]
[357703390,1744354656623,-500.0,0.00055616,38]
[357703391,1744354656665,-1000.0,0.00055643,30]
[357703392,1744354656710,-2500.0,0.000558,120]
[357703393,1744354656752,-811.27,0.00055833,120]
[357703394,1744354656796,-2557.83,0.0005589,120]
[357703395,1744354656839,-959.64,0.0005589,120]
[357703396,1744354656882,-579.16,0.0005589,120]
[357703397,1744354656925,-500.0,0.0005589,120]
[357703398,1744354656968,-500.0,0.0005589,120]
[357703399,1744354657010,-2500.0,0.000559,120]
[357703400,1744354657053,-150.0,0.00055901,120]
[357703401,1744354657096,-1447.07050257,0.00055986,120]
[357703402,1744354657136,-1447.07050257,0.00055986,120]
[357703403,1744354657181,-50000.0,0.00056,56]
[357703404,1744354657223,-50000.0,0.00056,66]
[357703405,1744354657265,-400.0,0.00056,120]
[357703406,1744354657306,-2500.0,0.00056,120]
[357703407,1744354657348,-5000.0,0.00056,120]
[357703408,1744354657394,-900.0,0.00056,120]
[357703409,1744354657438,-1000000.0,0.00056,120]
[357703410,1744354657483,-1000000.0,0.00056,120]
[357703411,1744354657523,-200000.0,0.00056,120]
[357703412,1744354657564,-5499.75070511,0.00056,120]
[357703413,1744354657605,-85815.533344,0.00056,120]
[357703414,1744354657646,-1296.0,0.00056029,30]
[357703415,1744354657690,-2557.83,0.00056164,120]
[357703416,1744354657733,-500.0,0.00056164,40]
[357703417,1744354657780,-1000.0,0.000562,120]
[357703418,1744354657823,-432.31,0.000562,120]
[357703419,1744354657867,-5000.0,0.000562,120]
[357703420,1744354657909,-150.0,0.00056237,120]
[357703421,1744354657960,-500.0,0.00056259,120]
[357703422,1744354658002,-500.0,0.00056259,120]
[357703423,1744354658043,-500.0,0.00056259,120]
[357703424,1744354658085,-5000.0,0.000564,120]
[357703425,1744354658127,-2557.83,0.00056438,120]
[357703426,1744354658169,-959.64,0.00056438,120]
[357703427,1744354658210,-500.0,0.00056438,120]
[357703428,1744354658252,-433.6,0.00056438,120]
[357703429,1744354658293,-4000.0,0.000565,120]
[357703430,1744354658338,-150.0,0.00056505,120]
[357703431,1744354658378,-500.0,0.00056533,120]
[357703432,1744354658419,-500.0,0.00056533,120]
[357703433,1744354658458,-5119.58115269,0.0005655,120]
[357703434,1744354658498,-1447.07050257,0.0005659,120]
[357703435,1744354658539,-1447.07050257,0.0005659,120]
[357703436,1744354658582,-5000.0,0.000566,120]
[357703437,1744354658624,-2557.83,0.00056712,120]
[357703438,1744354658665,-500.0,0.00056712,42]
[357703439,1744354658706,-5000.0,0.000568,120]
[357703440,1744354658747,-500.0,0.00056807,120]
[357703441,1744354658789,-500.0,0.00056807,120]
[357703442,1744354658831,-150.0,0.00056813,120]
[357703443,1744354658874,-150.0,0.00056859,120]
[357703444,1744354658916,-2557.83,0.00056986,120]
[357703445,1744354658959,-959.64,0.00056986,120]
[357703446,1744354659002,-500.0,0.00056986,120]
[357703447,1744354659044,-98308.26606341,0.00056998,120]
[357703448,1744354664277,-430.56069162,0.000549,120]
[357703449,1744354664319,-430.56069162,0.000549,120]
[357703450,1744354664360,-150.0,0.00055616,120]
[357703451,1744354664400,-1691.73393659,0.00056998,120]
[357703452,1744354664440,-100000.0,0.00056998,120]
[357703453,1744354664483,-50000.0,0.00057,57]
[357703454,1744354664528,-50000.0,0.00057,67]
[357703455,1744354664570,-690.0,0.00057,120]
[357703456,1744354664617,-2500.0,0.00057,120]
[357703457,1744354664669,-5000.0,0.00057,120]
[357703458,1744354664712,-1000000.0,0.00057,120]
[357703459,1744354664756,-1000000.0,0.00057,120]
[357703460,1744354664797,-200000.0,0.00057,120]
[357703461,1744354664839,-5000.0,0.00057,120]
[357703462,1744354664878,-500.0,0.00057081,120]